Cogmind - Beta 13 @@@ ROGUE MODE // 2024.04.01 @ 15:20:22 Player: SuperDrops Result: Destroyed by Piercing Trap Performance ------------- Evolutions (0) 0 Regions Visited (3) 600 Robots Destroyed (13) 65 Value Destroyed (234) 234 Prototype IDs (0) 0 Alien Tech Used (0) 0 Bonus (19) 19 TOTAL SCORE: 918 Bonus ------- Follower Combat Kills 25 Friendly Fire -6 Cogmind --------- Core Integrity 0/250 Matter 300/300 Energy 99/100 System Corruption 0% Temperature Cool (0) Movement Core (700) Ox13 Location -10/Subcaves Parts ------- > --- POWER (1) -------- (None) > --- PROPULSION (2) --- (None) > --- UTILITY (2) ------ High-capacity Storage Unit Signal Interpreter > --- WEAPON (2) ------- Light Assault Rifle > --- INVENTORY (20) --- Aluminum Leg Aluminum Leg Small Storage Unit Medium Storage Unit Large Storage Unit Terrain Scanner Scrap Shield Medium Laser Small Laser Small Laser Beam Cannon Peak State ------------ > --- POWER ------------ Ion Engine > --- PROPULSION ------- Light Treads Light Treads > --- UTILITY ---------- Medium Storage Unit Signal Interpreter > --- WEAPON ----------- Medium Laser Beam Cannon > --- INVENTORY -------- Light Ion Engine Aluminum Leg Aluminum Leg Compact Wheel Compact Wheel Small Storage Unit Large Storage Unit Terrain Scanner Small Laser Grenade Launcher [Rating: 8] Favorites ----------- Power Ion Engine Engine Ion Engine Propulsion Light Treads Treads Light Treads Wheel Compact Wheel Utility Signal Interpreter Storage High-capacity Storage Unit Processor Signal Interpreter Weapon Medium Laser Energy Gun Medium Laser Energy Cannon Beam Cannon Ballistic Gun Light Assault Rifle Ballistic Cannon Light Cannon Launcher Grenade Launcher Special Weapon Mining Laser Build | -11 -10 -10 -10 ------- Run | Yrd Mat Min Sub Slots Evolved . | . . . . Power . | . . . . Propulsion . | . . . . Utility . | . . . . Weapon . | . . . . Parts Attached 18 | 6 7 5 . Power 2 | 1 . 1 . Engine 2 | 1 . 1 . Core . | . . . . Reactor . | . . . . Propulsion 4 | 2 . 2 . Treads 2 | 2 . . . Leg . | . . . . Wheel 2 | . . 2 . Hover . | . . . . Flight . | . . . . Utility 5 | 1 4 . . Device . | . . . . Storage 4 | 1 3 . . Processor 1 | . 1 . . Hackware . | . . . . Protection . | . . . . Artifact . | . . . . Weapon 7 | 2 3 2 . Energy Gun 2 | 2 . . . Energy Cannon 1 | . 1 . . Ballistic Gun 1 | . . 1 . Ballistic Cannon 1 | . . 1 . Launcher 1 | . 1 . . Special Weapon 1 | . 1 . . Impact Weapon . | . . . . Slashing Weapon . | . . . . Piercing Weapon . | . . . . Special Melee Weapon . | . . . . Unidentified Prototypes . | . . . . Parts Lost 9 | . 4 4 1 Power 2 | . 1 1 . Propulsion 4 | . 2 1 1 Utility . | . . . . Weapon 3 | . 1 2 . Highest Loss Streak 3 | . 3 3 1 To Critical Strikes . | . . . . Average Slot Usage (%) 84 | . 96 74 57 Engine 10 | . 13 7 . Treads 13 | . 27 . . Wheel 11 | . . 21 14 Storage 14 | . 14 14 14 Processor 12 | . 11 14 14 Energy Gun 7 | . 14 . . Energy Cannon 5 | . 8 3 . Ballistic Gun 3 | . . 6 14 Ballistic Cannon 1 | . . 3 . Launcher 2 | . 3 1 . Naked Turns . | . . . . Heaviest Build 51 | 14 51 49 41 Greatest Support 40 | 40 40 32 16 Greatest Overweight (x) 15 | . 15 2 2 Average Overweight (x) 1 | . . 1 2 Largest Inventory Capacity 20 | 8 20 20 20 Average Capacity 16 | 7 12 20 20 Most Carried 12 | 8 11 10 12 Average Carried 9 | 4 9 9 11 Final Capacity 20 | 8 20 20 20 Final Carried 12 | 6 11 10 12 Class Distribution -------------------- 100% | Mutant Dominant Class ---------------- Mutant | -10/Materials Mutant | -10/Mines Mutant | -10/Subcaves Resources | -11 -10 -10 -10 ----------- Run | Yrd Mat Min Sub Matter Collected 396 | 146 149 101 . Remotely . | . . . . Salvage Created 260 | . 180 80 . Parts 15 | . 10 5 . Haulers Intercepted . | . . . . Recyclers Shooed . | . . . . Parts Field Recycled . | . . . . Retrieved Matter . | . . . . Parts Self-Destructed . | . . . . Prevented . | . . . . Kills | -11 -10 -10 -10 ------- Run | Yrd Mat Min Sub Combat Hostiles Destroyed 12 | . 8 4 . Guns 6 | . 5 1 . Cannons 5 | . 2 3 . AOE 1 | . 1 . . Classes Destroyed 3 | . 3 . . Operator 1 | . 1 . . Swarmer 9 | . 6 3 . Grunt 3 | . 2 1 . Best Kill Streak 3 | . 3 3 . Combat Bots Only 3 | . 3 3 . Max Kills in Single Turn 1 | . 1 1 . Gunslinging . | . . . . Exploded 1 | . 1 . . Melee . | . . . . Uniques/NPCs Destroyed . | . . . . Combat | -11 -10 -10 -10 -------- Run | Yrd Mat Min Sub Hostile Shots Fired 122 | . 77 45 . Missed 23 | . 13 10 . Damage Taken 1153 | . 673 435 45 Core 258 | . 86 147 25 Absorbed by Shields . | . . . . Core Remaining (%) 100 | 100 . . . Volleys Fired 67 | . 35 32 . Largest 2 | . 2 1 . Hottest 100 | . 100 60 . Shots Fired 84 | . 52 32 . Gun 52 | . 34 18 . Cannon 31 | . 17 14 . Launcher 1 | . 1 . . Special . | . . . . Kinetic 25 | . . 25 . Thermal 58 | . 51 7 . Explosive 1 | . 1 . . Electromagnetic . | . . . . Robot Hit Streak 9 | . 9 5 . Robot Miss Streak 4 | . 4 1 . Penetration Max . | . . . . Secondary Targets 1 | . 1 . . Max Gunslinging Chain 1 | . 1 . . Shots Hit Robots 36 | . 24 12 . Core Hits 18 | . 12 6 . Critical Kills . | . . . . Critical Parts Destroyed . | . . . . Critical Strikes 2 | . 2 . . Burn 2 | . 2 . . Melee Attacks . | . . . . Impact . | . . . . Slashing . | . . . . Piercing . | . . . . Sneak Attacks . | . . . . Combat Hostiles . | . . . . Follow-up Attacks . | . . . . Damage Inflicted 571 | . 385 186 . Guns 258 | . 212 46 . Cannons 244 | . 122 122 . Explosions 51 | . 51 . . Melee . | . . . . Ramming 18 | . . 18 . Kinetic 81 | . . 81 . Thermal 421 | . 334 87 . Explosive 51 | . 51 . . Electromagnetic . | . . . . Impact . | . . . . Slashing . | . . . . Piercing . | . . . . Highest Corruption . | . . . . Average Corruption . | . . . . Corruption Purged . | . . . . Corruption Blocked . | . . . . Overload Shots . | . . . . Overflow Damage . | . . . . Projectiles . | . . . . Explosions . | . . . . Melee . | . . . . Knockbacks 1 | . . 1 . Impact 1 | . . 1 . Kinetic . | . . . . Secondary . | . . . . Self-Inflicted Damage 9 | . . 9 . Shots . | . . . . Rammed 1 | . . 1 . Targets Rammed 1 | . . 1 . Kicked . | . . . . Crushed . | . . . . Highest Temperature 531 | . 531 140 . Average Temperature 149 | . 179 42 . Received Heat Transfer 468 | . 207 261 . Effects 3 | . 3 . . Shutdowns 1 | . 1 . . Energy Bleed 1 | . 1 . . Interference 1 | . 1 . . Siege Activations . | . . . . Robots Corrupted . | . . . . Combat Hostiles . | . . . . Parts Fried . | . . . . Impact Corruptions . | . . . . Robots Melted . | . . . . Combat Hostiles . | . . . . Parts Melted 7 | . 7 . . Heat Transferred 1221 | . 1036 185 . Parts Sabotaged . | . . . . Parts Stolen . | . . . . Parts Stripped . | . . . . Power Chain Reactions . | . . . . Alert | -11 -10 -10 -10 ------- Run | Yrd Mat Min Sub Peak Influence 135 | . 135 99 . Initial 39 | . . 39 . Average 67 | . 77 63 . Maximum Alert Level . | . . . . Low Security (%) 100 | 100 100 100 . Level 1 . | . . . . Level 2 . | . . . . Level 3 . | . . . . Level 4 . | . . . . Level 5 . | . . . . High Security . | . . . . Max Security . | . . . . Squads Dispatched 1 | . 1 . . Investigation . | . . . . Extermination . | . . . . Reinforcement 1 | . 1 . . Assault . | . . . . Garrison . | . . . . Intercept . | . . . . Searches Triggered . | . . . . Construction Impeded . | . . . . Haulers Reinforced . | . . . . Active Scanning Responses . | . . . . Cargo Convoy Interrupts . | . . . . Stealth | -11 -10 -10 -10 --------- Run | Yrd Mat Min Sub Distress Signals 1 | . 1 . . Communications Jammed . | . . . . Distress Signals . | . . . . Times Spotted 24 | . 18 6 . Peak Tracking Total 4 | . 4 3 . Tactical Retreats 1 | . . 1 . Traps | -11 -10 -10 -10 ------- Run | Yrd Mat Min Sub Traps Triggered 2 | . 1 . 1 Indirectly . | . . . . Trap Hack Attempts . | . . . . Triggered . | . . . . Disarmed . | . . . . Reprogrammed . | . . . . Reused . | . . . . Traps Extracted . | . . . . Installed . | . . . . Triggered . | . . . . Machines | -11 -10 -10 -10 ---------- Run | Yrd Mat Min Sub Machines Disabled . | . . . . Max in Single Turn . | . . . . Machines Repaired . | . . . . Machines Dismantled . | . . . . Machines Sabotaged . | . . . . Overloaded Fab Kills . | . . . . Hacking | -11 -10 -10 -10 --------- Run | Yrd Mat Min Sub Machines Accessed . | . . . . Terminals . | . . . . Fabricators . | . . . . Repair Stations . | . . . . Recycling Units . | . . . . Scanalyzers . | . . . . Garrison Access . | . . . . Total Hacks . | . . . . Successful . | . . . . Failed . | . . . . Catastrophic . | . . . . Database Lockouts . | . . . . Manual . | . . . . Terminals . | . . . . Fabricators . | . . . . Repair Stations . | . . . . Recycling Units . | . . . . Scanalyzers . | . . . . Garrison Access . | . . . . Terminal Hacks . | . . . . Fabricator Hacks . | . . . . Repair Station Hacks . | . . . . Recycling Unit Hacks . | . . . . Scanalyzer . | . . . . Garrison Access Hacks . | . . . . Unauthorized Hacks . | . . . . Terminals . | . . . . Fabricators . | . . . . Repair Stations . | . . . . Recycling Units . | . . . . Scanalyzers . | . . . . Garrison Access . | . . . . Data Cores Recovered 1 | . 1 . . Used . | . . . . Hacking Detections . | . . . . Full Trace Events . | . . . . Feedback Events . | . . . . Feedback Blocked . | . . . . Robot Schematics Acquired . | . . . . Robots Built . | . . . . Authchips . | . . . . Time . | . . . . Total Robot Build Rating . | . . . . Part Schematics Acquired . | . . . . Parts Built . | . . . . Authchips . | . . . . Time . | . . . . Total Part Build Rating . | . . . . Parts Repaired . | . . . . Time . | . . . . Parts Recycled . | . . . . Recycled Matter . | . . . . Retrieved Matter . | . . . . Retrieved Components . | . . . . Parts Scanalyzed . | . . . . Part Schematics Acquired . | . . . . Parts Damaged . | . . . . Bothacking | -11 -10 -10 -10 ------------ Run | Yrd Mat Min Sub Used RIF Installer . | . . . . Robots Hacked . | . . . . Non-combat . | . . . . Combat . | . . . . Robot Hacks Applied . | . . . . Relay Couplers Released . | . . . . Fabnet Peak Effective % . | . . . . Robots Rewired . | . . . . Allies Hacked . | . . . . Hacks Repelled . | . . . . Allies | -11 -10 -10 -10 -------- Run | Yrd Mat Min Sub Total Allies 3 | . . 3 . Largest Group 3 | . . 3 3 Highest-Rated Group 40 | . . 40 40 Highest-Rated Ally 16 | . . 16 16 Total Orders 4 | . . 4 . AID 4 | . . 4 . Ally Attacks 5 | . . 5 . Total Damage 60 | . . 60 . Kills 1 | . . 1 . Allies Corrupted . | . . . . Allies Melted . | . . . . Intel | -11 -10 -10 -10 ------- Run | Yrd Mat Min Sub Robot Analysis Total . | . . . . Derelict Logs Recovered 3 | . . 2 1 Drone Launches . | . . . . Drone Recoveries . | . . . . Exploration | -11 -10 -10 -10 ------------- Run | Yrd Mat Min Sub Turns Passed 1704 | 72 784 802 46 Spaces Moved 1033 | 37 364 597 35 Core 5 | 4 1 . . Treads 396 | 33 363 . . Legs . | . . . . Wheels 632 | . . 597 35 Hover . | . . . . Flight . | . . . . Fastest Speed 50 | 50 160 115 130 Average Speed 144 | 148 181 121 130 Slowest Speed 800 | 160 800 130 130 Overloaded Moves . | . . . . Propulsion Burnouts . | . . . . Robots Hopped . | . . . . Cave-ins Triggered . | . . . . Exploration Rate (%) 44 | 3 71 100 3 Regions Visited 3 Branch Regions 2 Pre-discovered Areas 1 | . . . 1 Known Exits Taken 2 | . 1 1 . Unknown Exits Taken 1 | 1 . . . Scrap Searched 3 | . . 2 1 Spaces Dug . | . . . . Terrain Destroyed 5 | . 5 . . Melee . | . . . . Projectile . | . . . . AOE 5 | . 5 . . Terrain Rammed . | . . . . Walls Destroyed . | . . . . Machines Disabled . | . . . . Actions | -11 -10 -10 -10 --------- Run | Yrd Mat Min Sub Total 1172 | 54 439 643 36 Wait 31 | . 25 6 . Move 1030 | 36 363 596 35 Hop . | . . . . Pick Up 24 | 12 8 3 1 Fast Attach . | . . . . Attach 12 | 6 2 4 . Detach . | . . . . Swap 6 | . 5 1 . Drop 1 | . 1 . . Fire 67 | . 35 32 . Melee . | . . . . Ram 1 | . . 1 . Kick . | . . . . Crush . | . . . . Escape Stasis . | . . . . Rewire . | . . . . Trap . | . . . . Miscellaneous . | . . . . Route ------- -11/Scrapyard -10/Materials (discovered 3 exits: *Mat x2 / *Min) -10/Mines (discovered 3 exits: *Mat x2 / *Sub) -10/Subcaves History --------- Turn | Location | Event 13 | -11/Scrapyard | Discovered new exit (range 15) 73 | -11/Scrapyard | Entered Materials 302 | -10/Materials | Build established: Mutant 418 | -10/Materials | Discovered new exit (range 5) 423 | -10/Materials | Identified exit to Materials 527 | -10/Materials | Discovered new exit (range 16) 557 | -10/Materials | Identified exit to Mines 707 | -10/Materials | Discovered exit to Materials (range 16) 857 | -10/Materials | Entered Mines 888 | -10/Mines | Lost 3 parts (1p2n) 934 | -10/Mines | Learned Materials terminal intel 940 | -10/Mines | Discovered exit to Materials (range 7) 1155 | -10/Mines | Discovered exit to Materials (range 14) 1274 | -10/Mines | Core integrity fell below 50% 1296 | -10/Mines | Core integrity fell below 20% 1334 | -10/Mines | Lost 3 parts (1p1n1w) 1425 | -10/Mines | Assisted by bots powering up and referring to "LRC-V3" 1428 | -10/Mines | Learned Materials garrison access intel 1643 | -10/Mines | Discovered new exit (range 6) 1649 | -10/Mines | Identified exit to Subcaves 1659 | -10/Mines | Entered Subcaves 1659 | -10/Subcaves | Accompanied by 3 allies 1662 | -10/Subcaves | Learned location of Mines (-10) 1705 | -10/Subcaves | Destroyed by Piercing Trap Last Messages --------------- LOCATION=SUBCAVES AMBIENT_HEAT=-10 GOAL=ESCAPE WB-3GQ(h): "Hey you don't look like the usual menacing locals. I'm on point searching for advanced tech we've heard is being developed in secret down here, seen anything like that?" Acquired derelict log, extracted data. World map updated: -10/Mines. WB-3GQ(h) drops a Scrap Shield: "Protect yourself with this!" Acquired Scrap Shield. Searching scrap... Found Sub. Shrapnel Launcher. Found 20 Matter. Triggered Piercing Trap. Spikes shoot up from the floor. Critical hit (Impale). Com. Wheel destroyed. Critical hit (Impale). Map ----- +----------------------------------------------------+ | ????????????????????????????????????????????????? | | ????????????????????????????????????????????????? | | ????????????????????????????????????????????????? | | ????????????????????????????????????????????????? | | ????????????????????????????????????????????????? | | ????????????????????????????????????????????????? | | ????????????????????????????????????????????????? | | ????????????????????????????????????????????????? | | ????????????????????????????????????????????????? | | ????????????????????????????????????????????????? | | ????????????????????????????????????????????????? | | ????????????????????????????????????????????????? | | ????????????????????##??????????????????????????? | | ???????????????????## ##????????????????????????? | | ??????????????????## ###??????????????????????? | | ??????????????????# ##?????????????????????? | | ??????????????????# ##????????????????????? | | ??????????????????## ######???????????????? | | ???????????????????### ## ##??????????????? | | ????????????????????# ## ##?????????????? | | ????????????????????## # #?????????????? | | ???????????????????## ## ## #?????????????? | | ??????????????????##^ # #% ##% #?????????????? | | ??????????????# # g# ### ##?????????????? | | ??????????????# % % ]###h####??????????????? | | ??????????????# @ gg ##???????????????? | | ??????????????# #???????????????? | | ??????????????# # ### #?????????????? | | ??????????????## % # ###?### ??????????? | | ???????????????## ??????#### % ??????? | | ????????????????# O ??????????# ## ????? | | ????????????????# ???????????###??? ????? | | ????????????????# ???????????????????# ????? | | ????????????????## ?????????????????????????? | | ?????????????????##### ?????????????????????????? | | ?????????????????????? ?????????????????????????? | | ????????????????????????????????????????????????? | | ????????????????????????????????????????????????? | | ????????????????????????????????????????????????? | | ????????????????????????????????????????????????? | | ????????????????????????????????????????????????? | | ????????????????????????????????????????????????? | | ????????????????????????????????????????????????? | | ????????????????????????????????????????????????? | | ????????????????????????????????????????????????? | | ????????????????????????????????????????????????? | | ????????????????????????????????????????????????? | | ????????????????????????????????????????????????? | | ????????????????????????????????????????????????? | | ????????????????????????????????????????????????? | +----------------------------------------------------+ Best States ------------- Heat Dissipation 25 Energy Generation 10 Energy Capacity 250 Matter Stores 300 Matter Capacity 300 Sight Range 16 Terrain Scan Density 10 Evasion (%) 40 Recoil Reduction 2 Item Schematics ----------------- None Robot Schematics ------------------ None Fabricated ------------ Nothing Alien Tech Used ----------------- None Achievements -------------- None Challenges ------------ None Game ------ Seed SiegePotentialAutohacker Manual? 0 Play Time 00:15:52 Cumulative 3.5 hours Start 2024.04.01 @ 15:04:51 End 2024.04.01 @ 15:20:22 Sessions 1 Manual Loads 0 Difficulty Rogue Special Mode None Game No. 9 Rogue 9 Adventurer 0 Explorer 0 Win Type - Total 0 Types 0/0/0/0/0/0/0/0/0 Lore% 9 Gallery% 5 Achievement% 5 Wizard Run 0 Options --------- Layout 1 ASCII 0 Keyboard 0 Movement Numpad Keybinds 0 Fullscreen 2 Font 24/Proggy Map View 50x35 Zoom Use 0% Tactical HUD 0 Map Filters NONE Filters NONE Steam 1 RUN: dff95369-3143-44f4-a532-2e252aad7d1c